bitfinex/quotes_BTCUSD_20250616
["timestamp","ask_amount","ask_price","bid_price","bid_amount"]
[1750075734387,0.61515566,106900.0,106890.0,0.0057]
[1750075734599,0.61015566,106900.0,106890.0,0.0057]
[1750075735023,0.60580165,106900.0,106890.0,0.0067]
[1750075735447,0.69259669,106900.0,106890.0,0.002]
[1750075735697,0.75167974,106900.0,106890.0,0.002]
[1750075735906,0.74674974,106900.0,106890.0,0.002]
[1750075736123,0.76105538,106900.0,106890.0,0.002]
[1750075736342,0.73739538,106900.0,106890.0,0.002]
[1750075736546,0.74232538,106900.0,106890.0,0.002]
[1750075737409,0.73297085,106900.0,106890.0,0.002]
[1750075741734,0.74674947,106900.0,106890.0,0.002]
[1750075742367,0.65995478,106900.0,106890.0,0.01135541]
[1750075742580,0.64355478,106900.0,106890.0,0.002]
[1750075742790,0.61889991,106900.0,106890.0,0.21258879]
[1750075742999,0.58190574,106900.0,106890.0,0.24689882]
[1750075743203,0.38546092,106900.0,106890.0,0.26339882]
[1750075743407,0.38546092,106900.0,106890.0,0.22839882]
[1750075743614,0.39481493,106900.0,106890.0,0.23775441]
[1750075743824,0.39481493,106900.0,106890.0,0.23775379]
[1750075744039,0.38546092,106900.0,106890.0,0.24710867]
[1750075744461,0.39481493,106900.0,106890.0,0.24710867]
[1750075744686,0.38546092,106900.0,106890.0,0.24710867]
[1750075745136,0.38546074,106900.0,106890.0,0.24710867]
[1750075745354,0.39481466,106900.0,106890.0,0.24710867]
[1750075745609,0.38546074,106900.0,106890.0,0.24710867]
[1750075745890,0.036107,106900.0,106890.0,0.40653343]
[1750075746304,0.376107,106900.0,106890.0,0.40653343]
[1750075746742,0.376107,106900.0,106890.0,0.60413343]
[1750075746967,0.371107,106900.0,106890.0,0.60413343]
[1750075747197,0.376107,106900.0,106890.0,0.60513343]
[1750075747654,0.373107,106900.0,106890.0,0.60513343]
[1750075747882,0.376107,106900.0,106890.0,0.60613343]
[1750075754810,0.348,106900.0,106890.0,0.60613343]
[1750075756177,0.348,106900.0,106890.0,0.54295043]
[1750075757666,0.348,106900.0,106890.0,0.34535043]
[1750075757889,0.348,106900.0,106890.0,0.54287043]
[1750075758861,0.348,106900.0,106890.0,0.34535043]
[1750075759089,0.348,106900.0,106890.0,0.54287043]
[1750075759526,0.348,106900.0,106890.0,0.55269116]
[1750075764991,0.348,106900.0,106890.0,0.53619116]
[1750075765510,0.348,106900.0,106890.0,0.54197043]
[1750075765744,0.348,106900.0,106890.0,0.34445043]
[1750075765969,0.348,106900.0,106890.0,0.54193043]
[1750075771138,0.348,106900.0,106890.0,0.34445043]
[1750075771396,0.348,106900.0,106890.0,0.54193043]
[1750075771606,0.348,106900.0,106890.0,0.63807965]
[1750075775541,0.345,106900.0,106890.0,0.63707965]
[1750075775963,0.346,106900.0,106890.0,0.63707965]
[1750075776178,0.341,106900.0,106890.0,0.63607965]
[1750075776386,0.345,106900.0,106890.0,0.63707965]
[1750075781719,0.345,106900.0,106890.0,0.43959965]
[1750075781927,0.345,106900.0,106890.0,0.63699965]
[1750075782963,0.345,106900.0,106890.0,0.50965043]
[1750075783372,0.345,106900.0,106890.0,0.31225043]
[1750075783572,0.345,106900.0,106890.0,0.50965043]
[1750075788435,0.345,106900.0,106890.0,0.54045043]
[1750075789200,0.345,106900.0,106890.0,0.63095647]
[1750075789407,0.345,106900.0,106890.0,0.72710569]
[1750075789952,0.345,106900.0,106890.0,0.63659965]
[1750075790781,0.345,106900.0,106890.0,0.60579965]
[1750075793210,0.005,106900.0,106890.0,0.60579965]
[1750075793415,0.005,106900.0,106890.0,0.63809965]
[1750075793630,0.0322,106910.0,106900.0,0.21515327]
[1750075793846,0.0322,106910.0,106900.0,0.39391377]
[1750075794511,0.0322,106910.0,106900.0,0.43535377]
[1750075794946,0.0352,106910.0,106900.0,0.43735377]
[1750075795161,0.0412,106910.0,106900.0,0.43735377]
[1750075798183,0.0412,106910.0,106900.0,0.39591377]
[1750075798391,0.0412,106910.0,106900.0,0.59327377]
[1750075799677,0.0412,106910.0,106900.0,0.39591377]
[1750075800107,0.0412,106910.0,106900.0,0.59323377]
[1750075800320,0.0412,106910.0,106900.0,0.39591377]
[1750075800502,0.0412,106910.0,106900.0,0.59323377]
[1750075800503,0.04603,106910.0,106900.0,0.59323377]
[1750075800945,0.38603,106910.0,106900.0,0.59323377]
[1750075801362,0.38603,106910.0,106900.0,0.39591377]
[1750075801570,0.38603,106910.0,106900.0,0.59323377]
[1750075803930,0.38603,106910.0,106900.0,0.41447327]
[1750075804336,0.39538296,106910.0,106900.0,0.41447327]
[1750075805008,0.404736,106910.0,106900.0,0.41447327]
[1750075805829,0.404736,106910.0,106900.0,0.21715327]
[1750075806030,0.404736,106910.0,106900.0,0.41447327]
[1750075806896,0.41408922,106910.0,106900.0,0.21715327]
[1750075807131,0.41408922,106910.0,106900.0,0.41447327]
[1750075807982,0.404736,106910.0,106900.0,0.41447327]
[1750075808443,0.41408922,106910.0,106900.0,0.41447327]
[1750075808657,0.41408913,106910.0,106900.0,0.41447327]
[1750075809521,0.41408913,106910.0,106900.0,0.21715327]
[1750075809767,0.61051663,106910.0,106900.0,0.19844509]
[1750075809992,0.70424631,106910.0,106900.0,0.36367936]
[1750075810633,0.67531219,106910.0,106900.0,0.37303354]
[1750075810818,0.67531219,106910.0,106900.0,0.38238763]
[1750075811032,0.61051663,106910.0,106900.0,0.39174164]
[1750075811450,0.41408974,106910.0,106900.0,0.39174164]
[1750075811656,0.42344322,106910.0,106900.0,0.3917412]
[1750075811866,0.61987002,106910.0,106900.0,0.2358612]
[1750075813070,0.61987055,106910.0,106900.0,0.22650728]
[1750075813286,0.63816247,106910.0,106900.0,0.22650728]
[1750075813903,0.63816247,106910.0,106900.0,0.21715327]
[1750075814305,0.63816247,106910.0,106900.0,0.22650728]
[1750075815402,0.63816247,106910.0,106900.0,0.21715327]
[1750075815566,0.62880908,106910.0,106900.0,0.21715327]
[1750075815967,0.65691208,106910.0,106900.0,0.20779918]
[1750075816244,0.86757572,106910.0,106900.0,0.002]
[1750075821145,0.86757572,106910.0,106900.0,0.00176432]
[1750075823572,0.84513686,106910.0,106900.0,0.00176432]
[1750075823794,0.86755015,106910.0,106900.0,0.00176432]
[1750075824425,0.84513686,106910.0,106900.0,0.00176432]
[1750075825260,0.86754948,106910.0,106900.0,0.00176432]
[1750075825474,0.84513686,106910.0,106900.0,0.00176432]
[1750075826521,0.86754915,106910.0,106900.0,0.00176432]
[1750075826939,0.84513686,106910.0,106900.0,0.00176432]
[1750075827354,0.86754932,106910.0,106900.0,0.00176432]
[1750075827604,0.86754942,106910.0,106900.0,0.00176432]
[1750075827804,0.84513686,106910.0,106900.0,0.00176432]
[1750075828231,0.86755013,106910.0,106900.0,0.00176432]
[1750075828445,0.86755013,106910.0,106880.0,0.20583291]
[1750075828446,0.36353968,106890.0,106880.0,0.20583291]
[1750075828655,0.40499491,106890.0,106880.0,0.20583291]
[1750075829287,0.43310291,106890.0,106880.0,0.20583291]
[1750075830100,0.43310291,106890.0,106880.0,0.20683291]
[1750075830297,0.62121115,106890.0,106880.0,0.20883291]
[1750075830538,0.63056647,106890.0,106880.0,0.20883291]
[1750075831317,0.42474768,106890.0,106880.0,0.20883291]
[1750075831532,0.41991759,106890.0,106880.0,0.20883291]
[1750075831763,0.369108,106890.0,106880.0,0.27336997]
[1750075831994,0.341,106890.0,106880.0,0.30436997]
[1750075832206,0.35170477,106890.0,106880.0,0.30436997]
[1750075847681,0.35170477,106890.0,106880.0,0.34568997]
[1750075860592,0.35170477,106890.0,106880.0,0.31468997]
[1750075862140,0.35170477,106890.0,106880.0,0.61093173]
[1750075862358,0.35170477,106890.0,106880.0,0.66163173]
[1750075862809,0.33648965,106890.0,106880.0,0.66163173]
[1750075866810,0.33648965,106890.0,106880.0,0.78661173]
[1750075870350,0.33648965,106890.0,106880.0,0.76649173]
[1750075870575,0.36708965,106890.0,106880.0,0.76174173]
[1750075871242,0.36708965,106890.0,106880.0,0.76476173]
[1750075878051,0.33648965,106890.0,106880.0,0.76476173]
[1750075879195,0.36858965,106890.0,106880.0,0.76476173]
[1750075879397,0.35208965,106890.0,106880.0,0.76476173]
[1750075879614,0.33648965,106890.0,106880.0,0.76476173]
[1750075880055,0.33648965,106890.0,106880.0,0.56788173]
[1750075880265,0.33648965,106890.0,106880.0,0.76472173]
[1750075880909,0.35188965,106890.0,106880.0,0.76472173]
[1750075881326,0.36718965,106890.0,106880.0,0.76472173]
[1750075882156,0.36718965,106890.0,106880.0,0.56788173]
[1750075882358,0.36718965,106890.0,106880.0,0.76472173]
[1750075883672,0.39529365,106890.0,106880.0,0.76472173]
[1750075883903,0.37999365,106890.0,106880.0,0.76472173]
[1750075884802,0.36459365,106890.0,106880.0,0.76472173]
[1750075885074,0.36459365,106890.0,106880.0,0.56788173]
[1750075885351,0.36459365,106890.0,106880.0,0.76472173]
[1750075887440,0.03980877,106890.0,106880.0,0.79732173]
[1750075888329,0.01170477,106890.0,106880.0,0.79732173]
[1750075891668,0.01170477,106890.0,106880.0,0.76472173]
[1750075892704,0.01170477,106890.0,106880.0,0.76468173]
[1750075893732,0.01170477,106890.0,106880.0,0.79668173]
[1750075894563,0.01170477,106890.0,106880.0,0.78108173]
[1750075894982,0.01170477,106890.0,106880.0,0.76468173]
[1750075895608,0.01170477,106890.0,106880.0,0.56788173]
[1750075895818,0.01170477,106890.0,106880.0,0.76468173]
[1750075897604,0.01170477,106890.0,106880.0,0.56788173]
[1750075897829,0.01170477,106890.0,106880.0,0.76464173]
[1750075898042,0.01170477,106890.0,106880.0,0.56788173]
[1750075898265,0.01170477,106890.0,106880.0,0.76464173]
[1750075899256,0.01170477,106890.0,106880.0,0.56788173]
[1750075899492,0.01170477,106890.0,106880.0,0.76464173]
[1750075900660,0.01170477,106890.0,106880.0,0.56788173]
[1750075900874,0.01170477,106890.0,106880.0,0.76456173]
[1750075903470,0.01170477,106890.0,106880.0,0.58408173]
[1750075903753,0.01170477,106890.0,106880.0,0.78076173]
[1750075904184,0.01170477,106890.0,106880.0,0.76456173]
[1750075906509,0.01170477,106890.0,106880.0,0.76452173]
[1750075911654,0.04320477,106890.0,106880.0,0.56486173]
[1750075911864,0.04320477,106890.0,106880.0,0.76150173]
[1750075913932,0.07130977,106890.0,106880.0,0.76150173]
[1750075918467,0.07130977,106890.0,106880.0,0.76146173]
[1750075925982,0.07130977,106890.0,106880.0,0.76454173]
[1750075931141,0.07130977,106890.0,106880.0,0.76146173]
[1750075933479,0.07130977,106890.0,106880.0,0.76138173]
[1750075936544,0.07130977,106890.0,106880.0,0.76412173]
[1750075940006,0.05530977,106890.0,106880.0,0.76412173]
[1750075944104,0.05530977,106890.0,106880.0,0.56760173]
[1750075944322,0.07140977,106890.0,106880.0,0.76408173]
[1750075949163,0.03980977,106890.0,106880.0,0.56760173]
[1750075949406,0.03980977,106890.0,106880.0,0.76408173]
[1750075950413,0.05540977,106890.0,106880.0,0.76408173]
[1750075952275,0.05540977,106890.0,106880.0,0.76278173]
[1750075962220,0.05540977,106890.0,106880.0,0.76262173]
[1750075963387,0.03980977,106890.0,106880.0,0.79482173]
[1750075963615,0.34,106900.0,106890.0,0.21982341]
[1750075963842,0.0316,106910.0,106900.0,0.21980327]
[1750075964051,0.03168829,106910.0,106900.0,0.37508327]
[1750075964465,0.07383216,106910.0,106900.0,0.37043327]
[1750075965062,0.07683216,106910.0,106900.0,0.37143327]
[1750075965269,0.06747929,106910.0,106900.0,0.37143327]
[1750075965472,0.06747929,106910.0,106900.0,0.41918692]
[1750075965875,0.07683216,106910.0,106900.0,0.41918692]
[1750075966278,0.0866866,106910.0,106900.0,0.41918692]
[1750075966894,0.0896866,106910.0,106900.0,0.42018692]
[1750075967254,0.08033373,106910.0,106900.0,0.42018692]
[1750075968559,0.0896866,106910.0,106900.0,0.42018692]
[1750075968763,0.08033373,106910.0,106900.0,0.42018692]
[1750075970061,0.0896866,106910.0,106900.0,0.42018692]
[1750075971091,0.0896866,106910.0,106900.0,0.43768806]
[1750075971300,0.0896866,106910.0,106900.0,0.42018692]
[1750075971511,0.0896866,106910.0,106900.0,0.43768806]
[1750075971894,0.0896866,106910.0,106900.0,0.43768808]
[1750075972102,0.0849966,106910.0,106900.0,0.43768797]
[1750075972310,0.0849966,106910.0,106900.0,0.43768796]
[1750075972503,0.09434956,106910.0,106900.0,0.42018692]
[1750075972924,0.0849966,106910.0,106900.0,0.42018692]
[1750075973365,0.0849966,106910.0,106900.0,0.43768796]
[1750075973571,0.0849966,106910.0,106900.0,0.42018692]
[1750075974210,0.0849966,106910.0,106900.0,0.43768796]
[1750075974628,0.07564373,106910.0,106900.0,0.43768754]
[1750075974838,0.08499669,106910.0,106900.0,0.43768779]
[1750075975070,0.08499669,106910.0,106900.0,0.43769019]
[1750075975293,0.08499669,106910.0,106900.0,0.43769054]
[1750075975495,0.08499669,106910.0,106900.0,0.43769032]
[1750075975707,0.08499669,106910.0,106900.0,0.42018692]
[1750075975918,0.08499669,106910.0,106900.0,0.43769031]
[1750075976161,0.09434973,106910.0,106900.0,0.43769072]
[1750075976583,0.08499669,106910.0,106900.0,0.43769076]
[1750075976789,0.07564373,106910.0,106900.0,0.42018692]
[1750075977233,0.08499669,106910.0,106900.0,0.43769069]
[1750075977421,0.08499669,106910.0,106900.0,0.43769025]
[1750075977844,0.08499669,106910.0,106900.0,0.43769016]
[1750075978061,0.08499669,106910.0,106900.0,0.42018692]
[1750075978282,0.08499669,106910.0,106900.0,0.43769021]
[1750075978488,0.08499669,106910.0,106900.0,0.4376904]
[1750075978729,0.09434982,106910.0,106900.0,0.4376903]
[1750075978951,0.08499669,106910.0,106900.0,0.4376903]
[1750075979165,0.08499669,106910.0,106900.0,0.42018692]
[1750075979375,0.08499669,106910.0,106900.0,0.43769068]
[1750075979577,0.09434982,106910.0,106900.0,0.44090068]
[1750075979777,0.08499669,106910.0,106900.0,0.42339692]
[1750075980022,0.09434982,106910.0,106900.0,0.42339692]
[1750075980227,0.09434973,106910.0,106900.0,0.42339692]
[1750075980428,0.09434973,106910.0,106900.0,0.44090061]
[1750075980868,0.09903973,106910.0,106900.0,0.42018692]
[1750075981077,0.10839286,106910.0,106900.0,0.4376906]
[1750075981440,0.10839286,106910.0,106900.0,0.43749062]
[1750075981594,0.09434973,106910.0,106900.0,0.41998692]
[1750075981816,0.10370304,106910.0,106900.0,0.43749062]
[1750075982020,0.10370295,106910.0,106900.0,0.37223327]
[1750075982222,0.10370295,106910.0,106900.0,0.38973696]
[1750075982430,0.09434973,106910.0,106900.0,0.3897372]
[1750075982631,0.10370295,106910.0,106900.0,0.3897372]
[1750075982832,0.09434973,106910.0,106900.0,0.47295679]
[1750075983259,0.09434973,106910.0,106900.0,0.45545286]
[1750075983465,0.10370295,106910.0,106900.0,0.47295679]
[1750075984094,0.10370295,106910.0,106900.0,0.45545286]
[1750075984336,0.08499669,106910.0,106900.0,0.47295679]
[1750075984550,0.08499669,106910.0,106900.0,0.45996286]
[1750075984969,0.09434973,106910.0,106900.0,0.47746678]
[1750075985214,0.0849966,106910.0,106900.0,0.47746678]
[1750075985440,0.0849966,106910.0,106900.0,0.45996286]
[1750075985896,0.09434956,106910.0,106900.0,0.45996286]
[1750075986118,0.09434956,106910.0,106900.0,0.47746679]
[1750075986378,0.1037026,106910.0,106900.0,0.47295679]
[1750075986609,0.09434956,106910.0,106900.0,0.47295679]
[1750075987130,0.09434956,106910.0,106900.0,0.47746679]
[1750075987367,0.09434956,106910.0,106900.0,0.45996286]
[1750075987605,0.0849966,106910.0,106900.0,0.45996286]
[1750075987824,0.07564373,106910.0,106900.0,0.47746664]
[1750075988065,0.07564373,106910.0,106900.0,0.47746656]
[1750075988292,0.0849966,106910.0,106900.0,0.45996286]
[1750075988527,0.07564373,106910.0,106900.0,0.4774666]
[1750075988760,0.07564373,106910.0,106900.0,0.45996286]
[1750075988979,0.07564373,106910.0,106900.0,0.47746615]
[1750075989195,0.07564373,106910.0,106900.0,0.47726608]
[1750075989405,0.07564373,106910.0,106900.0,0.45976286]
[1750075990055,0.04404373,106910.0,106900.0,0.4772659]
[1750075990476,0.04404373,106910.0,106900.0,0.45976286]
[1750075991332,0.06014373,106910.0,106900.0,0.45976286]
[1750075993546,0.07524373,106910.0,106900.0,0.45976286]
[1750075995549,0.07524373,106910.0,106900.0,0.45964286]
[1750076001428,0.06014373,106910.0,106900.0,0.45964286]
[1750076002095,0.07604373,106910.0,106900.0,0.45964286]
[1750076004604,0.07604373,106910.0,106900.0,0.37642327]
[1750076004846,0.07604373,106910.0,106900.0,0.37638327]
[1750076011821,0.07604373,106910.0,106900.0,0.37634327]
[1750076013790,0.07604373,106910.0,106900.0,0.22126327]
[1750076014000,0.07604373,106910.0,106900.0,0.37634327]
[1750076014212,0.07604373,106910.0,106900.0,0.45789447]
[1750076017847,0.04404373,106910.0,106900.0,0.45789447]
[1750076019354,0.04104373,106910.0,106900.0,0.45689447]
[1750076019773,0.07404373,106910.0,106900.0,0.45789447]
[1750076020217,0.07404373,106910.0,106900.0,0.45689447]
[1750076020218,0.07204373,106910.0,106900.0,0.45689447]
[1750076022853,0.07204373,106910.0,106900.0,0.30181447]
[1750076023060,0.07204373,106910.0,106900.0,0.45685447]
[1750076023483,0.04004373,106910.0,106900.0,0.45685447]
[1750076029099,0.04004373,106910.0,106900.0,0.49777447]
[1750076030785,0.04004373,106910.0,106900.0,0.59401623]
[1750076030989,0.01194273,106910.0,106900.0,0.59299623]
[1750076031243,0.01194273,106910.0,106900.0,0.82379623]
[1750076031453,0.01194273,106910.0,106900.0,0.880647]
[1750076032055,0.01094273,106910.0,106900.0,0.879647]
[1750076032269,0.00994273,106910.0,106900.0,0.879647]
[1750076033274,0.00055501,106910.0,106900.0,0.879647]
[1750076033474,0.546696,106930.0,106920.0,0.21511303]
[1750076033677,0.54674322,106930.0,106920.0,0.40085254]
[1750076034415,0.88674322,106930.0,106920.0,0.39610254]
[1750076035524,0.88974322,106930.0,106920.0,0.24210254]
[1750076035730,0.88974322,106930.0,106920.0,0.39710254]
[1750076035939,0.89457322,106930.0,106920.0,0.39710254]
[1750076036905,0.89757322,106930.0,106920.0,0.39810254]
[1750076037116,0.89274322,106930.0,106920.0,0.24310254]
[1750076037321,0.92562728,106930.0,106920.0,0.37211303]
[1750076037728,0.94333641,106930.0,106920.0,0.37211303]
[1750076038377,0.95268814,106930.0,106920.0,0.37211303]
[1750076038597,0.95268806,106930.0,106920.0,0.37211303]
[1750076039025,0.95268806,106930.0,106920.0,0.21711303]
[1750076039244,1.05818901,106930.0,106920.0,0.37211303]
[1750076039892,0.96203979,106930.0,106920.0,0.37211303]
[1750076040121,0.95268806,106930.0,106920.0,0.37211303]
[1750076040339,0.94333641,106930.0,106920.0,0.37211303]
[1750076040556,0.93398477,106930.0,106920.0,0.37211303]
[1750076041515,0.94333633,106930.0,106920.0,0.37211303]
[1750076041725,0.94333624,106930.0,106920.0,0.37211303]
[1750076042572,0.95268789,106930.0,106920.0,0.37211303]
[1750076042806,0.95268789,106930.0,106920.0,0.37191303]
[1750076043007,0.95268789,106930.0,106920.0,0.21691303]
[1750076043211,1.04883711,106930.0,106920.0,0.37191303]
[1750076043742,0.94333624,106930.0,106920.0,0.37191303]
[1750076044019,0.95268789,106930.0,106920.0,0.37191303]
[1750076044439,0.94333624,106930.0,106920.0,0.37191303]
[1750076045075,0.9526878,106930.0,106920.0,0.37191303]
[1750076046017,0.94333624,106930.0,106920.0,0.37191303]
[1750076046387,1.04883711,106930.0,106920.0,0.37191303]
[1750076047345,1.04883702,106930.0,106920.0,0.37191303]
[1750076047991,1.03948546,106930.0,106920.0,0.37187303]
[1750076048199,1.04883719,106930.0,106920.0,0.37187303]
[1750076048410,1.14907803,106930.0,106920.0,0.37207312]
[1750076048621,1.15426776,106930.0,106920.0,0.21711312]
[1750076049498,1.15426776,106930.0,106920.0,0.20776086]
[1750076049718,1.13556499,106930.0,106920.0,0.20776104]
[1750076049902,1.23171421,106930.0,106920.0,0.21711356]
[1750076050107,1.23171421,106930.0,106920.0,0.22646599]
[1750076050551,1.21301066,106930.0,106920.0,0.002]
[1750076050938,1.36797066,106930.0,106920.0,0.002]
[1750076051360,1.3903969,106930.0,106920.0,0.002]
[1750076051819,1.48663866,106930.0,106920.0,0.002]
[1750076055738,1.48663866,106930.0,106920.0,0.18905574]
[1750076055950,1.48663866,106930.0,106920.0,0.19840852]
[1750076056897,1.48663866,106930.0,106920.0,0.01135278]
[1750076057108,1.48663866,106930.0,106920.0,0.19840852]
[1750076058431,1.48663866,106930.0,106920.0,0.21711382]
[1750076058640,1.33167866,106930.0,106920.0,0.20776121]
[1750076058847,1.48663866,106930.0,106920.0,0.20776121]
[1750076059271,1.33167866,106930.0,106920.0,0.19840852]
[1750076059499,1.48663866,106930.0,106920.0,0.19840852]
[1750076060340,1.33167866,106930.0,106920.0,0.19840852]
[1750076060559,1.48663866,106930.0,106920.0,0.19840852]
[1750076061006,1.33167866,106930.0,106920.0,0.19840852]
[1750076061228,1.48663866,106930.0,106920.0,0.002]
[1750076062367,1.48663866,106930.0,106920.0,0.19840852]
[1750076062826,1.48663866,106930.0,106920.0,0.20776121]
[1750076063342,1.33167866,106930.0,106920.0,0.20776121]
[1750076064004,1.48659866,106930.0,106920.0,0.20776121]
[1750076064447,1.48659866,106930.0,106920.0,0.21711382]
[1750076064448,1.33167866,106930.0,106920.0,0.21711382]
[1750076064708,1.48659866,106930.0,106920.0,0.21711382]
[1750076065170,1.33167866,106930.0,106920.0,0.21711382]
[1750076065412,1.48659866,106930.0,106920.0,0.21711382]
[1750076065624,1.48659866,106930.0,106920.0,0.20776121]
[1750076065836,1.33167866,106930.0,106920.0,0.20776121]
[1750076066044,1.48659866,106930.0,106920.0,0.20776121]
[1750076066256,1.33167866,106930.0,106920.0,0.19840852]
[1750076066476,1.48659866,106930.0,106920.0,0.19840852]
[1750076068273,1.48659866,106930.0,106920.0,0.002]
[1750076069874,1.33167866,106930.0,106920.0,0.002]
[1750076070100,1.33167866,106930.0,106920.0,0.19840843]
[1750076070314,1.48659866,106930.0,106920.0,0.19840843]
[1750076070529,1.48659866,106930.0,106920.0,0.20776104]
[1750076071497,1.33167866,106930.0,106920.0,0.20776104]
[1750076071973,1.48659866,106930.0,106920.0,0.20776104]
[1750076072214,1.33167866,106930.0,106920.0,0.20776104]
[1750076072455,1.48659866,106930.0,106920.0,0.21711356]
[1750076073639,1.33167866,106930.0,106920.0,0.21711356]
[1750076073876,1.48659866,106930.0,106920.0,0.20776104]
[1750076074119,1.48659866,106930.0,106920.0,0.19840843]
[1750076074352,1.33167866,106930.0,106920.0,0.19840843]
[1750076074597,1.48659866,106930.0,106920.0,0.19840843]
[1750076074845,1.48659866,106930.0,106920.0,0.20776104]
[1750076076536,1.33167866,106930.0,106920.0,0.20776104]
[1750076076770,1.48659866,106930.0,106920.0,0.20776104]
[1750076077510,1.33167866,106930.0,106920.0,0.19840843]
[1750076077748,1.48659866,106930.0,106920.0,0.19840843]
[1750076078297,1.48655866,106930.0,106920.0,0.18905574]
[1750076078557,1.48655866,106930.0,106920.0,0.19840852]
[1750076078785,1.33167866,106930.0,106920.0,0.19840852]
[1750076079009,1.48655866,106930.0,106920.0,0.20776121]
[1750076079241,1.33167866,106930.0,106920.0,0.20776121]
[1750076079484,1.48655866,106930.0,106920.0,0.20776121]
[1750076080159,1.48655866,106930.0,106920.0,0.19840852]
[1750076080160,1.33167866,106930.0,106920.0,0.19840852]
[1750076080376,1.48655866,106930.0,106920.0,0.19840852]
[1750076081045,1.48655866,106930.0,106920.0,0.20776121]
[1750076081714,1.33167866,106930.0,106920.0,0.20776121]
[1750076081912,1.48655866,106930.0,106920.0,0.20776121]
[1750076082206,1.48655866,106930.0,106920.0,0.21711382]
[1750076083595,1.33167866,106930.0,106920.0,0.21711382]
[1750076083837,1.48655866,106930.0,106920.0,0.21711382]
[1750076084067,1.33167866,106930.0,106920.0,0.22646634]
[1750076084295,1.48655866,106930.0,106920.0,0.22646634]
[1750076084525,1.33167866,106930.0,106920.0,0.22646634]
[1750076085185,1.48655866,106930.0,106920.0,0.22646634]
[1750076085642,1.33167866,106930.0,106920.0,0.22646634]
[1750076086060,1.49591057,106930.0,106920.0,0.22646634]
[1750076086991,1.34103057,106930.0,106920.0,0.21711382]
[1750076087235,1.49591057,106930.0,106920.0,0.21711382]
[1750076087672,1.34103057,106930.0,106920.0,0.21711382]
[1750076087887,1.49591057,106930.0,106920.0,0.21711382]
[1750076088524,1.34103057,106930.0,106920.0,0.21711382]
[1750076088741,1.49591057,106930.0,106920.0,0.21711382]
[1750076089379,1.34103057,106930.0,106920.0,0.21711382]
[1750076090031,1.49587057,106930.0,106920.0,0.21711382]
[1750076090907,1.34103057,106930.0,106920.0,0.21711382]
[1750076091119,1.49587057,106930.0,106920.0,0.21711382]
[1750076091350,1.49587057,106930.0,106920.0,0.19840852]
[1750076091557,1.34103057,106930.0,106920.0,0.20776121]
[1750076091993,1.49587057,106930.0,106920.0,0.20776121]
[1750076092886,1.49587057,106930.0,106920.0,0.21711382]
[1750076093812,0.34,106900.0,106890.0,0.21850824]
[1750076094063,0.00935497,106890.0,106880.0,0.24081291]
[1750076094291,0.59346204,106890.0,106880.0,0.03628]
[1750076094515,0.61740039,106890.0,106880.0,0.00488]
[1750076094735,0.34,106880.0,106870.0,0.40138793]
[1750076095212,0.34935584,106880.0,106870.0,0.40138793]
[1750076095431,0.34935584,106880.0,106870.0,0.40147622]
[1750076095652,0.00935584,106880.0,106870.0,0.24663622]
[1750076095863,0.00935584,106880.0,106870.0,0.40147622]
[1750076096089,0.00935584,106880.0,106870.0,0.24663622]
[1750076096304,0.01871186,106880.0,106870.0,0.24663622]
[1750076096535,0.028067,106880.0,106870.0,0.40147622]
[1750076096758,0.028067,106880.0,106870.0,0.40635622]
[1750076096981,0.029067,106880.0,106870.0,0.40635622]
[1750076097189,0.030067,106880.0,106870.0,0.40935622]
[1750076097476,0.03942311,106880.0,106870.0,0.40935622]
[1750076097699,0.03942311,106880.0,106870.0,0.25451622]
[1750076097931,0.22313769,106880.0,106870.0,0.1995887]
[1750076098167,0.22313769,106880.0,106870.0,0.20894568]
[1750076098388,0.35871318,106870.0,106860.0,0.23556134]
[1750076098610,0.35871318,106870.0,106860.0,0.40806789]
[1750076098837,0.35871318,106870.0,106860.0,0.4541318]
[1750076099090,0.36807086,106870.0,106860.0,0.31682615]
[1750076099308,0.57392799,106870.0,106860.0,0.39871123]
[1750076099529,0.57392799,106870.0,106860.0,0.39257043]
[1750076099749,0.57392799,106870.0,106860.0,0.38439224]
[1750076099962,0.57392799,106870.0,106860.0,0.40192806]
[1750076100183,0.57392799,106870.0,106860.0,0.40192802]
[1750076100410,0.38042758,106870.0,106860.0,0.41228543]
[1750076100639,0.68010983,106870.0,106860.0,0.21518732]
[1750076100864,0.68010983,106870.0,106860.0,0.22453959]
[1750076101087,0.3965649,106870.0,106860.0,0.22453974]
[1750076101352,0.39656455,106870.0,106860.0,0.22453302]
[1750076101573,0.40592162,106870.0,106860.0,0.22453296]
[1750076101793,0.38520731,106870.0,106860.0,0.19762923]
[1750076102300,0.341,106870.0,106860.0,0.27205715]
[1750076102302,0.34,106870.0,106860.0,0.29171715]
[1750076102532,0.344,106870.0,106860.0,0.30921617]
[1750076102769,0.346,106870.0,106860.0,0.25332637]
[1750076103023,0.346,106870.0,106860.0,0.23578923]
[1750076103265,0.346,106870.0,106860.0,0.24379904]
[1750076103481,0.35535646,106870.0,106860.0,0.20992219]
[1750076103694,0.346,106870.0,106860.0,0.20055515]
[1750076103916,0.346,106870.0,106860.0,0.217932]
[1750076104138,0.346,106870.0,106860.0,0.20856496]
[1750076104361,0.35535637,106870.0,106860.0,0.18182107]
[1750076104574,0.39282692,106870.0,106860.0,0.25416079]
[1750076104784,0.374114,106870.0,106860.0,0.17245403]
[1750076104998,0.38347046,106870.0,106860.0,0.18983085]
[1750076106616,0.374114,106870.0,106860.0,0.21388249]
[1750076107063,0.374114,106870.0,106860.0,0.1965057]
[1750076107286,0.374114,106870.0,106860.0,0.21388256]
[1750076107498,0.374114,106870.0,106860.0,0.21388199]
[1750076107952,0.374114,106870.0,106860.0,0.21388201]
[1750076108201,0.374114,106870.0,106860.0,0.21404116]
[1750076108457,0.374114,106870.0,106860.0,0.1965057]
[1750076108899,0.374114,106870.0,106860.0,0.2069457]
[1750076112554,0.374114,106870.0,106860.0,0.2116057]
[1750076113700,0.374114,106870.0,106860.0,0.15945291]
[1750076116238,0.370114,106870.0,106860.0,0.15845291]
[1750076116459,0.371114,106870.0,106860.0,0.15945291]
[1750076116687,0.369114,106870.0,106860.0,0.15845291]
[1750076125893,0.369114,106870.0,106860.0,0.14335291]
[1750076126393,0.369114,106870.0,106860.0,0.21889899]
[1750076126625,0.369114,106870.0,106860.0,0.14335291]
[1750076127207,0.369114,106870.0,106860.0,0.15855291]
[1750076127925,0.369114,106870.0,106860.0,0.25247399]
[1750076128152,0.341,106870.0,106860.0,0.25013467]
[1750076128599,0.341,106870.0,106860.0,0.34628389]
[1750076129507,0.341,106870.0,106860.0,0.54184389]
[1750076132411,0.341,106870.0,106860.0,0.54649389]
[1750076132873,0.32578169,106870.0,106860.0,0.53129389]
[1750076133302,0.32578169,106870.0,106860.0,0.33573389]
[1750076133523,0.32578169,106870.0,106860.0,0.53129389]